bitfinex-derivatives/quotes_BNBF0:USTF0_20260110
["timestamp","ask_amount","ask_price","bid_price","bid_amount"]
[1768084561064,0.1922397,905.87,904.9,0.69345505]
[1768084561264,0.1922397,905.87,904.91,0.69345505]
[1768084561561,0.1922397,905.87,904.92,0.69345505]
[1768084561764,0.1922397,905.87,904.93,0.69345505]
[1768084562060,0.1922397,905.87,904.94,0.69345505]
[1768084562265,0.1922397,905.87,904.95,0.69345505]
[1768084562462,0.1922397,905.87,904.96,0.69345505]
[1768084562664,0.1922397,905.87,904.97,0.69345505]
[1768084562864,0.1922397,905.87,904.98,0.69345505]
[1768084563064,0.1922397,905.87,904.99,0.69345505]
[1768084563260,0.1922397,905.87,904.87,2.356]
[1768084563467,0.1922397,905.87,904.88,0.69348609]
[1768084563666,0.1922397,905.87,904.89,0.69348609]
[1768084563864,0.1922397,905.87,904.9,0.69348609]
[1768084564066,0.1922397,905.87,904.91,0.69348609]
[1768084564367,0.1922397,905.87,904.92,0.69348609]
[1768084564565,0.1922397,905.87,904.93,0.69348609]
[1768084564764,0.1922397,905.87,904.94,0.69348609]
[1768084564965,0.1922397,905.87,904.95,0.69348609]
[1768084565161,0.1922397,905.87,904.96,0.69348609]
[1768084565364,0.1922397,905.87,904.87,2.356]
[1768084565564,0.1922397,905.87,904.88,0.69360838]
[1768084565866,0.1922397,905.87,904.89,0.69360838]
[1768084566066,0.1922397,905.87,904.9,0.69360838]
[1768084566264,0.1922397,905.87,904.91,0.69360838]
[1768084566466,0.1922397,905.87,904.92,0.69360838]
[1768084566662,0.1922397,905.87,904.93,0.69360838]
[1768084566863,0.1922397,905.87,904.94,0.69360838]
[1768084567064,0.1922397,905.87,904.95,0.69360838]
[1768084567266,0.1922397,905.87,904.96,0.69360838]
[1768084567464,0.1922397,905.87,904.87,2.356]
[1768084567664,0.1922397,905.87,904.88,0.69366784]
[1768084567868,0.1922397,905.87,904.89,0.69366784]
[1768084568068,0.1922397,905.87,904.9,0.69366784]
[1768084568265,0.1922397,905.87,904.91,0.69366784]
[1768084568465,0.1922397,905.87,904.92,0.69366784]
[1768084568666,0.1922397,905.87,904.93,0.69370436]
[1768084568968,0.1922397,905.87,904.94,0.69370436]
[1768084569170,0.1922397,905.87,904.95,0.69370436]
[1768084569464,0.1922397,905.87,904.96,0.69370436]
[1768084569669,0.1922397,905.87,904.87,2.356]
[1768084569866,0.1922397,905.87,904.88,0.69374462]
[1768084570067,0.1922397,905.87,904.89,0.69374462]
[1768084570266,0.1922397,905.87,904.9,0.69374462]
[1768084570466,0.1922397,905.87,904.91,0.69374462]
[1768084570668,0.1922397,905.87,904.92,0.69374462]
[1768084570872,0.1922397,905.87,904.93,0.69374462]
[1768084571068,0.1922397,905.87,904.94,0.69374462]
[1768084571271,0.1922397,905.87,904.95,0.69374462]
[1768084571472,0.1922397,905.87,904.96,0.69374462]
[1768084571669,0.1922397,905.87,904.97,0.69374462]
[1768084571873,0.1922397,905.87,904.68,0.82630988]
[1768084572073,0.1922397,905.87,904.69,0.69378357]
[1768084572369,0.1922397,905.87,904.7,0.69378357]
[1768084572572,0.1922397,905.87,904.71,0.69378357]
[1768084572770,0.1922397,905.87,904.72,0.69378357]
[1768084572974,0.1922397,905.87,904.73,0.69378357]
[1768084573170,0.1922397,905.87,904.74,0.69378357]
[1768084573469,0.1922397,905.87,904.75,0.69378357]
[1768084573771,0.1922397,905.87,904.76,0.69378357]
[1768084573973,0.1922397,905.87,904.77,0.69378357]
[1768084574171,0.1922397,905.87,904.78,0.69378357]
[1768084574374,0.1922397,905.87,904.79,0.69378357]
[1768084574568,0.1922397,905.87,904.8,0.69378357]
[1768084574773,0.1922397,905.87,904.81,0.69378357]
[1768084574972,0.1922397,905.87,904.82,0.69378357]
[1768084575172,0.1922397,905.87,904.83,0.69378357]
[1768084575372,0.1922397,905.87,904.84,0.69378357]
[1768084575575,0.1922397,905.87,904.85,0.69378357]
[1768084575775,0.1922397,905.87,904.86,0.69378357]
[1768084575972,0.1922397,905.87,904.87,0.69378357]
[1768084576172,0.1922397,905.87,904.88,0.69378357]
[1768084576477,0.1922397,905.87,904.89,0.69378357]
[1768084576678,0.1922397,905.87,904.9,0.69378357]
[1768084576872,0.1922397,905.87,904.91,0.69378357]
[1768084577077,0.1922397,905.87,904.92,0.69378357]
[1768084577279,0.1922397,905.87,904.75,2.089]
[1768084577477,0.1922397,905.87,904.76,0.69461932]
[1768084577678,0.1922397,905.87,904.77,0.69461932]
[1768084577977,0.1922397,905.87,904.78,0.69461932]
[1768084578177,0.1922397,905.87,904.75,2.089]
[1768084578378,0.1922397,905.87,904.76,0.69459133]
[1768084578579,0.1922397,905.87,904.75,2.089]
[1768084622109,0.1922397,905.87,904.76,0.6956772]
[1768084622312,0.1922397,905.87,904.77,0.6956772]
[1768084622508,0.1922397,905.87,904.78,0.6956772]
[1768084622712,0.1922397,905.87,904.75,2.089]
[1768084622910,0.1922397,905.87,904.76,0.69568016]
[1768084623110,0.1922397,905.87,904.77,0.69568016]
[1768084623313,0.1922397,905.87,904.78,0.69568016]
[1768084623608,0.1922397,905.87,904.79,0.69568016]
[1768084623809,0.1922397,905.87,904.75,2.089]
[1768084624010,0.1922397,905.87,904.76,0.69593873]
[1768084624213,0.1922397,905.87,904.77,0.69593873]
[1768084624415,0.1922397,905.87,904.78,0.69593873]
[1768084624712,0.1922397,905.87,904.75,2.089]
[1768084624915,0.1922397,905.87,904.76,0.695939]
[1768084625212,0.1922397,905.87,904.77,0.695939]
[1768084625514,0.1922397,905.87,904.75,2.089]
[1768084625712,0.1922397,905.87,904.76,0.69593922]
[1768084625913,0.1922397,905.87,904.77,0.69593922]
[1768084626216,0.1922397,905.87,904.75,2.089]
[1768084626413,0.1922397,905.87,904.76,0.69593922]
[1768084626712,0.1922397,905.87,904.77,0.69593922]
[1768084626914,0.1922397,905.87,904.75,2.089]
[1768084627214,0.1922397,905.87,904.76,0.69593906]
[1768084627417,0.1922397,905.87,904.77,0.69593906]
[1768084627717,0.1922397,905.87,904.75,2.089]
[1768084627914,0.1922397,905.87,904.76,0.69593906]
[1768084628217,0.1922397,905.87,904.77,0.69593906]
[1768084628413,0.1922397,905.87,904.75,2.089]
[1768084628717,0.1922397,905.87,904.76,0.69593946]
[1768084628917,0.1922397,905.87,904.77,0.69593946]
[1768084629117,0.1922397,905.87,904.75,2.089]
[1768084629318,0.1922397,905.87,904.76,0.69593952]
[1768084629515,0.1922397,905.87,904.77,0.69593952]
[1768084629714,0.1922397,905.87,904.54,7.28582781]
[1768084629914,0.1922397,905.87,904.55,0.6959395]
[1768084630119,0.1922397,905.87,904.56,0.6959395]
[1768084630321,0.1922397,905.87,904.57,0.6959395]
[1768084630521,0.1922397,905.87,904.58,0.6959395]
[1768084630721,0.1922397,905.87,904.59,0.6959395]
[1768084630922,0.1922397,905.87,904.6,0.6959395]
[1768084631119,0.1922397,905.87,904.61,0.6959395]
[1768084631317,0.1922397,905.87,904.62,0.6959395]
[1768084631520,0.1922397,905.87,904.63,0.6959395]
[1768084631722,0.1922397,905.87,904.64,0.6959395]
[1768084631920,0.1922397,905.87,904.65,0.6959395]
[1768084632219,0.1922397,905.87,904.66,0.69593983]
[1768084632420,0.1922397,905.87,904.67,0.69593983]
[1768084632620,0.1922397,905.87,904.68,0.69593983]
[1768084632819,0.1922397,905.87,904.54,7.28582781]
[1768084632820,0.1922397,905.87,904.69,0.69593983]
[1768084633017,0.1922397,905.87,904.7,0.69593983]
[1768084633218,0.1922397,905.87,904.71,0.69593983]
[1768084633423,0.1922397,905.87,904.72,0.69593983]
[1768084633624,0.1922397,905.87,904.73,0.69593983]
[1768084633824,0.1922397,905.87,904.74,0.69593983]
[1768084634121,0.1922397,905.87,904.75,0.69593983]
[1768084634325,0.1922397,905.87,904.76,0.69593983]
[1768084634525,0.1922397,905.87,904.77,0.69593983]
[1768084634722,0.1922397,905.87,904.78,0.69593983]
[1768084635025,0.1922397,905.87,904.79,0.69593983]
[1768084635225,0.1922397,905.87,904.7,2.077]
[1768084635525,0.1922397,905.87,904.71,0.69594014]
[1768084635723,0.1922397,905.87,904.72,0.69594014]
[1768084635926,0.1922397,905.87,904.73,0.69594014]
[1768084636222,0.1922397,905.87,904.74,0.69594014]
[1768084636421,0.1922397,905.87,904.75,0.69594014]
[1768084636623,0.1922397,905.87,904.76,0.69594014]
[1768084636822,0.1922397,905.87,904.77,0.69594014]
[1768084637123,0.1922397,905.87,904.78,0.69594014]
[1768084637324,0.1922397,905.87,904.79,0.69594014]
[1768084637525,0.1922397,905.87,904.7,2.077]
[1768084637724,0.1922397,905.87,904.71,0.69605022]
[1768084637928,0.1922397,905.87,904.72,0.69605022]
[1768084638226,0.1922397,905.87,904.73,0.69605022]
[1768084638428,0.1922397,905.87,904.74,0.69605022]
[1768084638726,0.1922397,905.87,904.75,0.69605022]
[1768084638928,0.1922397,905.87,904.76,0.69605022]
[1768084639227,0.1922397,905.87,904.77,0.69605022]
[1768084639426,0.1922397,905.87,904.78,0.69605022]
[1768084639629,0.1922397,905.87,904.79,0.69605022]
[1768084639827,0.1922397,905.87,904.7,2.077]
[1768084640024,0.1922397,905.87,904.71,0.69605011]
[1768084640224,0.1922397,905.87,904.72,0.69605011]
[1768084640426,0.1922397,905.87,904.73,0.69605011]
[1768084640628,0.1922397,905.87,904.74,0.69605011]
[1768084640824,0.1922397,905.87,904.75,0.69605011]
[1768084641029,0.1922397,905.87,904.76,0.69605011]
[1768084641230,0.1922397,905.87,904.77,0.69605011]
[1768084641529,0.1922397,905.87,904.78,0.69605011]
[1768084641729,0.1922397,905.87,904.79,0.69605011]
[1768084642026,0.1922397,905.87,904.7,2.077]
[1768084642224,0.1922397,905.87,904.71,0.6960507]
[1768084642426,0.1922397,905.87,904.72,0.6960507]
[1768084642629,0.1922397,905.87,904.7,2.077]
[1768084642630,0.1922397,905.87,904.73,0.6960507]
[1768084642824,0.1922397,905.87,904.74,0.6960507]
[1768084643026,0.1922397,905.87,904.75,0.6960507]
[1768084643228,0.1922397,905.87,904.76,0.6960507]
[1768084643428,0.1922397,905.87,904.77,0.6960507]
[1768084643630,0.1922397,905.87,904.78,0.6960507]
[1768084643831,0.1922397,905.87,904.79,0.6960507]
[1768084644026,0.1922397,905.87,904.7,2.077]
[1768084644232,0.1922397,905.87,904.71,0.69605106]
[1768084644431,0.1922397,905.87,904.72,0.69605106]
[1768084644628,0.1922397,905.87,904.73,0.69605106]
[1768084644929,0.1922397,905.87,904.74,0.69605106]
[1768084645130,0.1922397,905.87,904.75,0.69605106]
[1768084645328,0.1922397,905.87,904.76,0.69605106]
[1768084645532,0.1922397,905.87,904.77,0.69605106]
[1768084645834,0.1922397,905.87,904.78,0.69605106]
[1768084646032,0.1922397,905.87,904.79,0.69605106]
[1768084646232,0.1922397,905.87,904.7,2.077]
[1768084646428,0.1922397,905.87,904.71,0.6960514]
[1768084646731,0.1922397,905.87,904.7,2.077]
[1768084646732,0.1922397,905.87,904.72,0.6960514]
[1768084646931,0.1922397,905.87,904.73,0.6960514]
[1768084647129,0.1922397,905.87,904.74,0.6960514]
[1768084647432,0.1922397,905.87,904.75,0.6960514]
[1768084647633,0.1922397,905.87,904.76,0.6960514]
[1768084647828,0.1922397,905.87,904.77,0.6960514]
[1768084648129,0.1922397,905.87,904.78,0.6960514]
[1768084648330,0.1922397,905.87,904.79,0.6960514]
[1768084648529,0.1922397,905.87,904.7,2.077]
[1768084648833,0.1922397,905.87,904.71,0.69448599]
[1768084649034,0.1922397,905.87,904.72,0.69448599]
[1768084649329,0.1922397,905.87,904.73,0.69448599]
[1768084649533,0.1922397,905.87,904.74,0.69448599]
[1768084649734,0.1922397,905.87,904.75,0.69448599]
[1768084649930,0.1922397,905.87,904.76,0.69448599]
[1768084650228,0.1922397,905.87,904.77,0.69448599]
[1768084650432,0.1922397,905.87,904.78,0.69448599]
[1768084650630,0.1922397,905.87,904.79,0.69448599]
[1768084650829,0.1922397,905.87,904.7,2.077]
[1768084651029,0.1922397,905.87,904.71,0.69448625]
[1768084651233,0.1922397,905.87,904.72,0.69448625]
[1768084651434,0.1922397,905.87,904.73,0.69448625]
[1768084651633,0.1922397,905.87,904.74,0.69448625]
[1768084651830,0.1922397,905.87,904.75,0.69448625]
[1768084652034,0.1922397,905.87,904.76,0.69448625]
[1768084652230,0.1922397,905.87,904.77,0.69448625]
[1768084652431,0.1922397,905.87,904.78,0.69448625]
[1768084652730,0.1922397,905.87,904.79,0.69448625]
[1768084652931,0.1922397,905.87,904.7,2.077]
[1768084653131,0.1922397,905.87,904.71,0.69448668]
[1768084653330,0.1922397,905.87,904.72,0.69448668]
[1768084653633,0.1922397,905.87,904.73,0.69448668]
[1768084653834,0.1922397,905.87,904.74,0.69448668]
[1768084654034,0.1922397,905.87,904.75,0.69448668]
[1768084654234,0.1922397,905.87,904.76,0.69448668]
[1768084654431,0.1922397,905.87,904.7,2.077]
[1768084654636,0.1922397,905.87,904.71,0.69462509]
[1768084654830,0.1922397,905.87,904.72,0.69462509]
[1768084655034,0.1922397,905.87,904.7,2.077]
[1768084655235,0.1922397,905.87,904.71,0.69462525]
[1768084655432,0.1922397,905.87,904.7,2.077]
[1768084655635,0.1922397,905.87,904.71,0.69440101]
[1768084655836,0.1922397,905.87,904.7,2.077]
[1768084660840,2.73162362,906.07,904.7,2.077]
[1768084661334,2.73162362,906.08,904.7,2.077]
[1768084662334,2.73162362,906.09,904.7,2.077]
[1768084664441,2.73162362,906.1,904.7,2.077]
[1768084666542,0.19226148,905.76,904.7,2.077]
[1768084676352,0.19226148,905.76,904.54,7.28582781]
[1768084679561,0.19226148,905.76,904.55,1.673]
[1768084699382,0.19226148,905.76,904.56,0.69401966]
[1768084699577,0.19226148,905.76,904.55,1.673]
[1768084699782,0.19226148,905.76,904.56,0.69401966]
[1768084699982,0.19226148,905.76,904.55,1.673]
[1768084700183,0.19226148,905.76,904.56,0.69411885]
[1768084700481,0.19226148,905.76,904.57,0.69411885]
[1768084700679,0.19226148,905.76,904.55,1.673]
[1768084700883,0.19226148,905.76,904.56,0.69431555]
[1768084701083,0.19226148,905.76,904.57,0.69431555]
[1768084701281,0.19226148,905.76,904.58,0.69454349]
[1768084701480,0.19226148,905.76,904.59,0.69454349]
[1768084701784,0.19226148,905.76,904.55,1.673]
[1768084701985,0.19226148,905.76,904.56,0.69454349]
[1768084702286,0.19226148,905.76,904.57,0.69454349]
[1768084702484,0.19226148,905.76,904.58,0.69454349]
[1768084702684,0.19226148,905.76,904.59,0.69454349]
[1768084702886,0.19226148,905.76,904.55,1.673]
[1768084703185,0.19226148,905.76,904.56,0.69477256]
[1768084703382,0.19226148,905.76,904.57,0.69477256]
[1768084703586,0.19226148,905.76,904.58,0.69477256]
[1768084703885,0.19226148,905.76,904.59,0.69477256]
[1768084704088,0.19226148,905.76,904.55,1.673]
[1768084704286,0.19226148,905.76,904.56,0.69477134]
[1768084704487,0.19226148,905.76,904.57,0.69477134]
[1768084704683,0.19226148,905.76,904.58,0.69477134]
[1768084704882,0.19226148,905.76,904.55,1.673]
[1768084705082,0.19226148,905.76,904.56,0.69477124]
[1768084705384,0.19226148,905.76,904.55,1.673]
[1768084705583,0.19226148,905.76,904.56,0.69477149]
[1768084705787,0.19226148,905.76,904.55,1.673]
[1768084705988,0.19226148,905.76,904.56,0.69477149]
[1768084706186,0.19226148,905.76,904.55,1.673]
[1768084706389,0.19226148,905.76,904.56,0.69477249]
[1768084706591,0.19226148,905.76,904.55,1.673]
[1768084706790,0.19226148,905.76,904.56,0.69477249]
[1768084706986,0.19226148,905.76,904.55,1.673]
[1768084707185,0.19226148,905.76,904.56,0.69566882]
[1768084707385,0.19226148,905.76,904.55,1.673]
[1768084707587,0.19226148,905.76,904.56,0.69567018]
[1768084707786,0.19226148,905.76,904.55,1.673]
[1768084707985,0.19226148,905.76,904.56,0.69567018]
[1768084708187,0.19226148,905.76,904.55,1.673]
[1768084708392,0.19226148,905.76,904.56,0.6956721]
[1768084708591,0.19226148,905.76,904.55,1.673]
[1768084708792,0.19226148,905.76,904.56,0.6956721]
[1768084709092,0.19226148,905.76,904.55,1.673]
[1768084709289,0.19226148,905.76,904.56,0.69567311]
[1768084709492,0.19226148,905.76,904.55,1.673]
[1768084709792,0.19226148,905.76,904.56,0.69567451]
[1768084710092,0.19226148,905.76,904.55,1.673]
[1768084710291,0.19226148,905.76,904.56,0.69567564]
[1768084710492,0.19226148,905.76,904.55,1.673]
[1768084710692,0.19226148,905.76,904.56,0.6956775]
[1768084710892,0.19226148,905.76,904.55,1.673]
[1768084711187,0.19226148,905.76,904.56,0.6956775]
[1768084711391,0.19226148,905.76,904.55,1.673]
[1768084711592,0.19226148,905.76,904.56,0.69568103]
[1768084711892,0.19226148,905.76,904.55,1.673]
[1768084712089,0.19226148,905.76,904.56,0.69568103]
[1768084712288,0.19226148,905.76,904.55,1.673]
[1768084712489,0.19226148,905.76,904.56,0.69568518]
[1768084712692,0.19226148,905.76,904.55,1.673]
[1768084712992,0.19226148,905.76,904.56,0.69568518]
[1768084713192,0.19226148,905.76,904.55,1.673]
[1768084713392,0.19226148,905.76,904.56,0.69569019]
[1768084713692,0.19226148,905.76,904.55,1.673]
[1768084713893,0.19226148,905.76,904.56,0.69569019]
[1768084714093,0.19226148,905.76,904.55,1.673]
[1768084714392,0.19226148,905.76,904.56,0.69569179]
[1768084714590,0.19226148,905.76,904.55,1.673]
[1768084714794,0.19226148,905.76,904.56,0.69569592]
[1768084714995,0.19226148,905.76,904.57,0.69569592]
[1768084715292,0.19226148,905.76,904.58,0.69569592]
[1768084715596,0.19226148,905.76,904.55,1.673]
[1768084715892,0.19226148,905.76,904.56,0.69570242]
[1768084716096,0.19226148,905.76,904.57,0.69570242]
[1768084716296,0.19226148,905.76,904.58,0.69570242]
[1768084716493,0.19226148,905.76,904.55,1.673]
[1768084716693,0.19226148,905.76,904.56,0.69570975]
[1768084716897,0.19226148,905.76,904.57,0.69570975]
[1768084717097,0.19226148,905.76,904.58,0.69570975]
[1768084717296,0.19226148,905.76,904.55,1.673]
[1768084717596,0.19226148,905.76,904.56,0.69571802]
[1768084717800,0.19226148,905.76,904.57,0.69571802]
[1768084717997,0.19226148,905.76,904.58,0.69571802]
[1768084718301,0.19226148,905.76,904.54,7.28582781]
[1768084718497,0.19226148,905.76,904.55,0.69572732]
[1768084718701,0.19226148,905.76,904.56,0.69572732]
[1768084718897,0.19226148,905.76,904.57,0.69572732]
[1768084719098,0.19226148,905.76,904.58,0.69572732]
[1768084719298,0.19226148,905.76,904.59,0.69572732]
[1768084719501,0.19226148,905.76,904.54,7.28582781]
[1768084719801,0.19226148,905.76,904.55,0.69573783]
[1768084719999,0.19226148,905.76,904.56,0.69573783]
[1768084720303,0.19226148,905.76,904.57,0.69573783]
[1768084720504,0.19226148,905.76,904.58,0.69573783]
[1768084720701,0.19226148,905.76,904.59,0.69573783]
[1768084720905,0.19226148,905.76,904.57,2.612]
[1768084721102,0.19226148,905.76,904.58,0.69574984]
[1768084721300,0.19226148,905.76,904.59,0.69574984]
[1768084721603,0.19226148,905.76,904.57,2.612]
[1768084721805,0.19226148,905.76,904.58,0.69576346]
[1768084722003,0.19226148,905.76,904.59,0.69576346]
[1768084722204,0.19226148,905.76,904.57,2.612]
[1768084722402,0.19226148,905.76,904.58,0.69577877]
[1768084722700,0.19226148,905.76,904.59,0.69577877]
[1768084722906,0.19226148,905.76,904.57,2.612]
[1768084723106,0.19226148,905.76,904.58,0.69577869]
[1768084723306,0.19226148,905.76,904.59,0.69577869]
[1768084723606,0.19226148,905.76,904.57,2.612]
[1768084723903,0.19226148,905.76,904.58,0.69579671]
[1768084724201,0.19226148,905.76,904.59,0.69579671]
[1768084724403,0.19226148,905.76,904.57,2.612]
[1768084724601,0.19226148,905.76,904.58,0.69581907]
[1768084724806,0.19226148,905.76,904.59,0.69581907]
[1768084725107,0.19226148,905.76,904.57,2.612]
[1768084725304,0.19226148,905.76,904.58,0.69596157]
[1768084725508,0.19226148,905.76,904.59,0.69596157]
[1768084725705,0.19226148,905.76,904.57,2.612]
[1768084725907,0.19226148,905.76,904.58,0.69596176]
[1768084726108,0.19226148,905.76,904.59,0.69596176]
[1768084726404,0.19226148,905.76,904.57,2.612]
[1768084726608,0.19226148,905.76,904.58,0.69599164]
[1768084726809,0.19226148,905.76,904.59,0.69599164]
[1768084727005,0.19226148,905.76,904.57,2.612]
[1768084727209,0.19226148,905.76,904.58,0.69599168]
[1768084727506,0.19226148,905.76,904.59,0.69599168]
[1768084727809,0.19226148,905.76,904.6,0.69599168]
[1768084728006,0.19226148,905.76,904.57,2.612]
[1768084728206,0.19226148,905.76,904.58,0.6960656]
[1768084728405,0.19226148,905.76,904.59,0.6960656]
[1768084728607,0.19226148,905.76,904.6,0.6960656]
[1768084728803,0.19226148,905.76,904.57,2.612]
[1768084729005,0.19226148,905.76,904.58,0.69615571]
[1768084729207,0.19226148,905.76,904.59,0.69615571]
[1768084729404,0.19226148,905.76,904.6,0.69615571]
[1768084729609,0.19226148,905.76,904.57,2.612]
[1768084729810,0.19226148,905.76,904.58,0.69615571]
[1768084730004,0.19226148,905.76,904.59,0.69615571]
[1768084730207,0.19226148,905.76,904.6,0.69615571]
[1768084730405,0.19226148,905.76,904.57,2.612]
[1768084730607,0.19226148,905.76,904.58,0.69615546]
[1768084730807,0.19226148,905.76,904.59,0.69615546]
[1768084731007,0.19226148,905.76,904.6,0.69615546]
[1768084731207,0.19226148,905.76,904.57,2.612]
[1768084731406,0.19226148,905.76,904.58,0.69615546]
[1768084731608,0.19226148,905.76,904.59,0.69615546]
[1768084731811,0.19226148,905.76,904.6,0.69615546]
[1768084732107,0.19226148,905.76,904.57,2.612]
[1768084732312,0.19226148,905.76,904.58,0.69615571]
[1768084732512,0.19226148,905.76,904.59,0.69615571]
[1768084732713,0.19226148,905.76,904.6,0.69615571]
[1768084732911,0.19226148,905.76,904.57,2.612]
[1768084733109,0.19226148,905.76,904.58,0.69615571]
[1768084733311,0.19226148,905.76,904.59,0.69615571]
[1768084733514,0.19226148,905.76,904.6,0.69615571]
[1768084733711,0.19226148,905.76,904.57,2.612]
[1768084733912,0.19226148,905.76,904.58,0.69615546]
[1768084734214,0.19226148,905.76,904.59,0.69615546]
[1768084734416,0.19226148,905.76,904.6,0.69615546]
[1768084734616,0.19226148,905.76,904.57,2.612]
[1768084734818,0.19226148,905.76,904.58,0.69615546]
[1768084735017,0.19226148,905.76,904.59,0.69615546]
[1768084735218,0.19226148,905.76,904.6,0.69615546]
[1768084735418,0.19226148,905.76,904.57,2.612]
[1768084735618,0.19226148,905.76,904.58,0.69615571]
[1768084735813,0.19226148,905.76,904.59,0.69615571]
[1768084736016,0.19226148,905.76,904.6,0.69615571]
[1768084736218,0.19226148,905.76,904.57,2.612]
[1768084736414,0.19226148,905.76,904.58,0.69615593]
[1768084736614,0.19226148,905.76,904.59,0.69615593]
[1768084736914,0.19226148,905.76,904.6,0.69615593]
[1768084737117,0.19226148,905.76,904.57,2.612]
[1768084737319,0.19226148,905.76,904.58,0.69668189]
[1768084737618,0.19226148,905.76,904.59,0.69668189]
[1768084737918,0.19226148,905.76,904.6,0.69668189]
[1768084738219,0.19226148,905.76,904.57,2.612]
[1768084738419,0.19226148,905.76,904.58,0.69668189]
[1768084738619,0.19226148,905.76,904.59,0.69668189]
[1768084738820,0.19226148,905.76,904.6,0.69668189]
[1768084739017,0.19226148,905.76,904.57,2.612]
[1768084739320,0.19226148,905.76,904.58,0.69668189]
[1768084739522,0.19226148,905.76,904.59,0.69668189]
[1768084739820,0.19226148,905.76,904.6,0.69668189]
[1768084740018,0.19226148,905.76,904.57,2.612]
[1768084740218,0.19226148,905.76,904.58,0.69668189]
[1768084740418,0.19226148,905.76,904.59,0.69668189]
[1768084740617,0.19226148,905.76,904.6,0.69668189]
[1768084740818,0.19226148,905.76,904.57,2.612]
[1768084741017,0.19226148,905.76,904.58,0.69668188]
[1768084741218,0.19226148,905.76,904.59,0.69668188]
[1768084741418,0.19226148,905.76,904.6,0.69668188]
[1768084741721,0.19226148,905.76,904.57,2.612]
[1768084741922,0.19226148,905.76,904.58,0.69668188]
[1768084742222,0.19226148,905.76,904.59,0.69668188]
[1768084742423,0.19226148,905.76,904.6,0.69668188]
[1768084742618,0.19226148,905.76,904.54,7.28582781]
[1768084742822,0.19226148,905.76,904.55,0.69668214]
[1768084743017,0.19226148,905.76,904.56,0.69668214]
[1768084743219,0.19226148,905.76,904.57,0.69668214]
[1768084743523,0.19226148,905.76,904.58,0.69668214]
[1768084743718,0.19226148,905.76,904.59,0.69668214]
[1768084744018,0.19226148,905.76,904.6,0.69668214]
[1768084744222,0.19226148,905.76,904.54,7.28582781]
[1768084744522,0.19226148,905.76,904.55,0.69668178]
[1768084744717,0.19226148,905.76,904.56,0.69668178]
[1768084744919,0.19226148,905.76,904.57,0.69668178]
[1768084745219,0.19226148,905.76,904.58,0.69668178]
[1768084745520,0.19226148,905.76,904.59,0.69668214]
[1768084745719,0.19226148,905.76,904.6,0.69668214]
[1768084745922,0.19226148,905.76,904.31,0.83051234]
[1768084746124,0.19226148,905.76,904.32,0.69668214]
[1768084746422,0.19226148,905.76,904.33,0.69668214]
[1768084746618,0.19226148,905.76,904.34,0.69668214]
[1768084746819,0.19226148,905.76,904.35,0.69668214]
[1768084747022,0.19226148,905.76,904.36,0.69668214]
[1768084747218,0.19226148,905.76,904.37,0.69668214]
[1768084747422,0.19226148,905.76,904.38,0.69668214]
[1768084747621,0.19226148,905.76,904.39,0.69668214]
[1768084747919,0.19226148,905.76,904.4,0.69668214]
[1768084748118,0.19226148,905.76,904.41,0.69668214]
[1768084748320,0.19226148,905.76,904.42,0.69668214]
[1768084748522,0.19226148,905.76,904.43,0.69668214]
[1768084748719,0.19226148,905.76,904.44,0.69668214]
[1768084748923,0.19226148,905.76,904.45,0.69668214]
[1768084749120,0.19226148,905.76,904.46,0.69668214]
[1768084749321,0.19226148,905.76,904.47,0.69668214]
[1768084749519,0.19226148,905.76,904.48,0.69668214]
[1768084749720,0.19226148,905.76,904.49,0.69668214]
[1768084749924,0.19226148,905.76,904.5,0.69668214]
[1768084750221,0.19226148,905.76,904.51,0.69668214]
[1768084750420,0.19226148,905.76,904.52,0.69668214]
[1768084750624,0.19226148,905.76,904.53,0.69668214]
[1768084750920,0.19226148,905.76,904.54,0.69668214]
[1768084751126,0.19226148,905.76,904.55,0.69668214]
[1768084751322,0.19226148,905.76,904.36,7.22099604]
[1768084751323,0.19226148,905.76,904.56,0.69668214]
[1768084751527,0.19226148,905.76,904.57,0.69668214]
[1768084751825,0.19226148,905.76,904.58,0.69668214]
[1768084752027,0.19226148,905.76,904.59,0.69668214]
[1768084752226,0.19226148,905.76,904.6,0.69668214]
[1768084752424,0.19226148,905.76,904.36,7.22099604]
[1768084752627,0.19226148,905.76,904.37,0.69668013]
[1768084752827,0.19226148,905.76,904.38,0.69668013]
[1768084753027,0.19226148,905.76,904.39,0.69668013]
[1768084753228,0.19226148,905.76,904.4,0.69668013]
[1768084753427,0.19226148,905.76,904.41,0.69668013]
[1768084753628,0.19226148,905.76,904.42,0.69668013]
[1768084753925,0.19226148,905.76,904.43,0.69668013]
[1768084754128,0.19226148,905.76,904.44,0.69668013]
[1768084754329,0.19226148,905.76,904.45,0.69668013]
[1768084754628,0.19226148,905.76,904.46,0.69668013]
[1768084754826,0.19226148,905.76,904.47,0.69668013]